[Event "TOP 12 FEMININ 2022 - Phase 1"]
[Site "MULHOUSE, France"]
[Date "2022.04.07"]
[Round "1.20"]
[White "AFRAOUI CLI, Anaelle"]
[Black "STRASSER ASN, Arevik"]
[Result "1-0"]
[TimeControl "90 min +30 secondes par coup"]
[WhiteElo "2108"]
[BlackElo "1543"]

1. e4 {[%clk 01:30:54]} {[%emt 00:00:06]} e5 {[%clk 01:30:51]} {[%emt
00:00:10]} 2. Nf3 {[%clk 01:31:16]} {[%emt 00:00:07]} Nc6 {[%clk 01:31:09]}
{[%emt 00:00:13]} 3. Bb5 {[%clk 01:31:31]} {[%emt 00:00:14]} a6 {[%clk
01:31:23]} {[%emt 00:00:16]} 4. Ba4 {[%clk 01:31:54]} {[%emt 00:00:07]} Nf6
{[%clk 01:31:37]} {[%emt 00:00:15]} 5. O-O {[%clk 01:32:00]} {[%emt 00:00:25]}
Be7 {[%clk 01:31:50]} {[%emt 00:00:17]} 6. Re1 {[%clk 01:32:14]} {[%emt
00:00:16]} b5 {[%clk 01:32:07]} {[%emt 00:00:13]} 7. Bb3 {[%clk 01:32:37]}
{[%emt 00:00:07]} d6 {[%clk 01:32:22]} {[%emt 00:00:15]} 8. c3 {[%clk
01:32:57]} {[%emt 00:00:11]} O-O {[%clk 01:32:27]} {[%emt 00:00:24]} 9. h3
{[%clk 01:33:10]} {[%emt 00:00:17]} Na5 {[%clk 01:32:35]} {[%emt 00:00:21]} 10.
Bc2 {[%clk 01:33:10]} {[%emt 00:00:31]} c5 {[%clk 01:32:26]} {[%emt 00:00:39]}
11. d4 {[%clk 01:33:16]} {[%emt 00:00:24]} Qc7 {[%clk 01:32:11]} {[%emt
00:00:45]} 12. Nbd2 {[%clk 01:32:26]} {[%emt 00:01:20]} Bd7 {[%clk 01:31:38]}
{[%emt 00:01:02]} 13. Nf1 {[%clk 01:29:46]} {[%emt 00:03:12]} Rfe8 {[%clk
01:23:58]} {[%emt 00:08:10]} 14. Ng3 {[%clk 01:28:01]} {[%emt 00:02:14]} Bf8
{[%clk 01:23:22]} {[%emt 00:01:06]} 15. Bg5 {[%clk 01:26:05]} {[%emt 00:02:26]}
Be7 {[%clk 01:21:48]} {[%emt 00:02:05]} 16. d5 {[%clk 01:17:23]} {[%emt
00:09:11]} h6 {[%clk 01:19:06]} {[%emt 00:03:12]} 17. Be3 {[%clk 01:15:55]}
{[%emt 00:01:58]} c4 {[%clk 01:16:02]} {[%emt 00:03:35]} 18. a4 {[%clk
01:09:35]} {[%emt 00:06:49]} Nb7 {[%clk 01:06:39]} {[%emt 00:09:53]} 19. Nh4
{[%clk 01:06:03]} {[%emt 00:04:02]} Bf8 {[%clk 01:06:27]} {[%emt 00:00:43]} 20.
Nhf5 {[%clk 01:05:21]} {[%emt 00:01:11]} Kh7 {[%clk 01:05:52]} {[%emt
00:01:06]} 21. Qf3 {[%clk 01:00:17]} {[%emt 00:05:34]} Qd8 {[%clk 00:45:08]}
{[%emt 00:21:14]} 22. axb5 {[%clk 00:53:58]} {[%emt 00:06:49]} Bxb5 {[%clk
00:40:10]} {[%emt 00:05:27]} 23. Nf1 {[%clk 00:50:44]} {[%emt 00:03:45]} g6
{[%clk 00:39:02]} {[%emt 00:01:37]} 24. N5g3 {[%clk 00:46:22]} {[%emt
00:04:51]} Bg7 {[%clk 00:39:17]} {[%emt 00:00:16]} 25. Nd2 {[%clk 00:44:43]}
{[%emt 00:02:09]} Qe7 {[%clk 00:31:43]} {[%emt 00:08:04]} 26. Qe2 {[%clk
00:43:27]} {[%emt 00:01:46]} Rec8 {[%clk 00:31:53]} {[%emt 00:00:20]} 27. Ra2
{[%clk 00:41:55]} {[%emt 00:02:02]} Qd7 {[%clk 00:23:48]} {[%emt 00:08:35]} 28.
Rea1 {[%clk 00:41:28]} {[%emt 00:00:57]} a5 {[%clk 00:19:06]} {[%emt 00:05:12]}
29. Ba4 {[%clk 00:33:50]} {[%emt 00:08:08]} Bxa4 {[%clk 00:18:13]} {[%emt
00:01:24]} 30. Rxa4 {[%clk 00:34:03]} {[%emt 00:00:16]} Nc5 {[%clk 00:11:19]}
{[%emt 00:07:24]} 31. Bxc5 {[%clk 00:29:21]} {[%emt 00:05:13]} Rxc5 {[%clk
00:11:17]} {[%emt 00:00:31]} 32. Nxc4 {[%clk 00:29:36]} {[%emt 00:00:15]} Rb8
{[%clk 00:08:14]} {[%emt 00:03:33]} 33. Rxa5 {[%clk 00:28:50]} {[%emt
00:01:16]} Rc7 {[%clk 00:06:57]} {[%emt 00:01:46]} 34. Ra6 {[%clk 00:26:51]}
{[%emt 00:02:29]} Ne8 {[%clk 00:07:03]} {[%emt 00:00:25]} 35. Na5 {[%clk
00:26:12]} {[%emt 00:01:09]} Rb5 {[%clk 00:04:28]} {[%emt 00:03:05]} 36. Nc6
{[%clk 00:25:58]} {[%emt 00:00:45]} Rcb7 {[%clk 00:04:29]} {[%emt 00:00:29]} 37.
b4 {[%clk 00:26:16]} {[%emt 00:00:12]} Nc7 {[%clk 00:04:00]} {[%emt 00:00:58]}
38. Ra7 {[%clk 00:26:08]} {[%emt 00:00:38]} Qc8 {[%clk 00:04:11]} {[%emt
00:00:19]} 39. Rxb7 {[%clk 00:25:14]} {[%emt 00:01:24]} Rxb7 {[%clk 00:04:20]}
{[%emt 00:00:21]} 40. c4 {[%clk 00:25:14]} {[%emt 00:00:30]} Bf8 {[%clk
00:02:53]} {[%emt 00:01:57]} 41. Qc2 {[%clk 00:24:06]} {[%emt 00:01:37]} Rb6
{[%clk 00:01:59]} {[%emt 00:01:25]} 42. c5 {[%clk 00:23:04]} {[%emt 00:01:32]}
Ra6 {[%clk 00:01:38]} {[%emt 00:00:51]} 43. Ra5 {[%clk 00:17:02]} {[%emt
00:06:31]} Rxa5 {[%clk 00:01:05]} {[%emt 00:01:04]} 44. Nxa5 {[%clk 00:17:24]}
{[%emt 00:00:08]} Qa6 {[%clk 00:01:23]} {[%emt 00:00:12]} 45. cxd6 {[%clk
00:15:58]} {[%emt 00:01:56]} Bxd6 {[%clk 00:01:25]} {[%emt 00:00:28]} 46. Qc6
{[%clk 00:15:54]} {[%emt 00:00:35]} Qxc6 {[%clk 00:01:14]} {[%emt 00:00:41]} 47.
Nxc6 {[%clk 00:16:16]} {[%emt 00:00:07]} Kg7 {[%clk 00:01:25]} {[%emt
00:00:20]} 48. Kf1 {[%clk 00:16:27]} {[%emt 00:00:18]} Kf8 {[%clk 00:01:30]}
{[%emt 00:00:25]} 49. Ke2 {[%clk 00:16:47]} {[%emt 00:00:10]} Ke8 {[%clk
00:01:31]} {[%emt 00:00:30]} 50. Kd3 {[%clk 00:17:04]} {[%emt 00:00:12]} Kd7
{[%clk 00:01:22]} {[%emt 00:00:39]} 51. Kc4 {[%clk 00:17:22]} {[%emt 00:00:12]}
Kc8 {[%clk 00:01:39]} {[%emt 00:00:13]} 52. b5 {[%clk 00:17:19]} {[%emt
00:00:33]} Na8 {[%clk 00:01:26]} {[%emt 00:00:43]} 53. Ne2 {[%clk 00:16:44]}
{[%emt 00:01:06]} Kc7 {[%clk 00:01:34]} {[%emt 00:00:21]} 54. Nc3 {[%clk
00:16:37]} {[%emt 00:00:37]} h5 {[%clk 00:00:54]} {[%emt 00:01:11]} 55. Na4
{[%clk 00:16:43]} {[%emt 00:00:24]} Bf8 {[%clk 00:00:35]} {[%emt 00:00:46]} 56.
Nxe5 {[%emt 00:00:39]} 1-0

[Event "TOP 12 FEMININ 2022 - Phase 1"]
[Site "MULHOUSE, France"]
[Date "2022.04.07"]
[Round "1.21"]
[White "BULMAGA CAN, Irina"]
[Black "SEBAG  BIS, Marie"]
[Result "0-1"]
[TimeControl "90 min +30 secondes par coup"]
[WhiteElo "2379"]
[BlackElo "2461"]

1. e4 {[%clk 01:30:55]} {[%emt 00:00:03]} c5 {[%clk 01:30:55]} {[%emt
00:00:06]} 2. Nf3 {[%clk 01:31:16]} {[%emt 00:00:09]} d6 {[%clk 01:31:21]}
{[%emt 00:00:05]} 3. d4 {[%clk 01:31:39]} {[%emt 00:00:06]} cxd4 {[%clk
01:31:46]} {[%emt 00:00:05]} 4. Nxd4 {[%clk 01:32:03]} {[%emt 00:00:06]} Nf6
{[%clk 01:32:11]} {[%emt 00:00:05]} 5. Nc3 {[%clk 01:32:27]} {[%emt 00:00:07]}
a6 {[%clk 01:32:34]} {[%emt 00:00:07]} 6. Bg5 {[%clk 01:32:50]} {[%emt
00:00:06]} Nbd7 {[%clk 01:29:49]} {[%emt 00:03:16]} 7. Qe2 {[%clk 01:33:00]}
{[%emt 00:00:19]} h6 {[%clk 01:24:37]} {[%emt 00:05:42]} 8. Bh4 {[%clk
01:33:17]} {[%emt 00:00:13]} g6 {[%clk 01:22:25]} {[%emt 00:02:43]} 9. f4
{[%clk 01:31:42]} {[%emt 00:02:05]} e5 {[%clk 01:20:28]} {[%emt 00:02:27]} 10.
O-O-O {[%clk 01:15:27]} {[%emt 00:16:44]} exd4 {[%clk 00:54:20]} {[%emt
00:26:38]} 11. e5 {[%clk 01:09:31]} {[%emt 00:06:27]} dxc3 {[%clk 00:53:42]}
{[%emt 00:01:08]} 12. exf6+ {[%clk 00:53:02]} {[%emt 00:16:58]} Ne5 {[%clk
00:53:37]} {[%emt 00:00:36]} 13. fxe5 {[%clk 00:46:32]} {[%emt 00:07:00]} Be6
{[%clk 00:37:17]} {[%emt 00:16:50]} 14. Qf3 {[%clk 00:31:07]} {[%emt 00:15:54]}
cxb2+ {[%clk 00:20:26]} {[%emt 00:17:22]} 15. Kb1 {[%clk 00:31:24]} {[%emt
00:00:12]} Qc7 {[%clk 00:19:31]} {[%emt 00:01:26]} 16. Bg3 {[%clk 00:18:26]}
{[%emt 00:13:27]} dxe5 {[%clk 00:13:52]} {[%emt 00:06:09]} 17. Qe4 {[%clk
00:11:30]} {[%emt 00:07:26]} Rc8 {[%clk 00:09:50]} {[%emt 00:04:33]} 18. Bd3
{[%clk 00:03:41]} {[%emt 00:08:18]} Bxa2+ {[%clk 00:07:48]} {[%emt 00:02:32]}
19. Kxb2 {[%clk 00:02:39]} {[%emt 00:01:32]} Be6 {[%clk 00:07:18]} {[%emt
00:01:00]} 20. Qa4+ {[%clk 00:02:09]} {[%emt 00:01:00]} Bd7 {[%clk 00:03:51]}
{[%emt 00:03:57]} 21. Qb3 {[%clk 00:02:36]} {[%emt 00:00:03]} Bd6 {[%clk
00:02:45]} {[%emt 00:01:37]} 22. Be4 {[%clk 00:01:09]} {[%emt 00:01:57]} Be6
{[%clk 00:01:33]} {[%emt 00:01:42]} 23. Bd5 {[%clk 00:01:06]} {[%emt 00:00:33]}
Bf5 {[%clk 00:00:57]} {[%emt 00:01:06]} 24. Bxf7+ {[%clk 00:00:45]} {[%emt
00:00:50]} Qxf7 {[%clk 00:01:18]} {[%emt 00:00:09]} 25. Qxf7+ {[%clk 00:01:07]}
{[%emt 00:00:08]} Kxf7 {[%clk 00:01:44]} {[%emt 00:00:04]} 26. Rxd6 {[%clk
00:01:32]} {[%emt 00:00:05]} Rxc2+ {[%clk 00:02:01]} {[%emt 00:00:13]} 27. Kb3
{[%clk 00:00:34]} {[%emt 00:01:28]} Rhc8 {[%clk 00:01:51]} {[%emt 00:00:40]} 28.
Bxe5 {[%clk 00:00:45]} {[%emt 00:00:19]} Be6+ {[%clk 00:02:04]} {[%emt
00:00:17]} 29. Kb4 {[%clk 00:00:37]} {[%emt 00:00:38]} R8c4+ {[%clk 00:01:07]}
{[%emt 00:01:27]} 30. Ka3 {[%clk 00:01:01]} {[%emt 00:00:07]} Re4 {[%clk
00:01:16]} {[%emt 00:00:21]} 31. Bd4 {[%clk 00:00:55]} {[%emt 00:00:36]} Rd2
{[%clk 00:01:27]} {[%emt 00:00:19]} 32. Rxe6 {[%clk 00:00:37]} {[%emt
00:00:48]} Kxe6 {[%clk 00:01:47]} {[%emt 00:00:09]} 33. Ba1 {[%clk 00:00:35]}
{[%emt 00:00:32]} Re3+ {[%clk 00:00:41]} {[%emt 00:01:37]} 34. Kb4 {[%clk
00:00:53]} {[%emt 00:00:10]} Re4+ {[%clk 00:01:03]} {[%emt 00:00:09]} 35. Kb3
{[%clk 00:00:43]} {[%emt 00:00:40]} Rd3+ {[%clk 00:00:46]} {[%emt 00:00:47]} 36.
Kc2 {[%clk 00:01:06]} {[%emt 00:00:07]} Rd7 {[%clk 00:01:12]} {[%emt 00:00:04]}
37. Rf1 {[%clk 00:01:09]} {[%emt 00:00:27]} Re2+ {[%clk 00:01:32]} {[%emt
00:00:10]} 38. Kb3 {[%clk 00:01:33]} {[%emt 00:00:06]} Rxg2 {[%clk 00:01:52]}
{[%emt 00:00:10]} 39. Rc1 {[%clk 00:00:48]} {[%emt 00:01:15]} Rxh2 {[%clk
00:01:55]} {[%emt 00:00:27]} 40. Rc8 {[%clk 00:01:03]} {[%emt 00:00:16]} Rh1
{[%clk 00:02:16]} {[%emt 00:00:08]} 41. Bb2 {[%clk 00:01:03]} {[%emt 00:00:30]}
Rb1 {[%clk 00:02:35]} {[%emt 00:00:10]} 0-1

[Event "TOP 12 FEMININ 2022 - Phase 1"]
[Site "MULHOUSE, France"]
[Date "2022.04.07"]
[Round "1.22"]
[White "JAVAKHISHVILI  BIS, Lela"]
[Black "BENSDORP-DE LABACA CAN, Marlies"]
[Result "1-0"]
[TimeControl "90 min +30 secondes par coup"]
[WhiteElo "2482"]
[BlackElo "2234"]

1. d4 {[%clk 01:30:56]} {[%emt 00:00:03]} d5 {[%clk 01:30:56]} {[%emt
00:00:04]} 2. c4 {[%clk 01:31:16]} {[%emt 00:00:10]} e6 {[%clk 01:31:21]}
{[%emt 00:00:05]} 3. Nc3 {[%clk 01:30:37]} {[%emt 00:01:09]} Be7 {[%clk
01:31:45]} {[%emt 00:00:06]} 4. Bf4 {[%clk 01:30:41]} {[%emt 00:00:26]} Nf6
{[%clk 01:31:40]} {[%emt 00:00:36]} 5. e3 {[%clk 01:31:05]} {[%emt 00:00:06]}
O-O {[%clk 01:31:58]} {[%emt 00:00:12]} 6. Nf3 {[%clk 01:30:37]} {[%emt
00:00:57]} c6 {[%clk 01:29:49]} {[%emt 00:02:39]} 7. Qc2 {[%clk 01:27:20]}
{[%emt 00:03:47]} Nbd7 {[%clk 01:30:02]} {[%emt 00:00:17]} 8. cxd5 {[%clk
01:26:08]} {[%emt 00:01:43]} exd5 {[%clk 01:30:23]} {[%emt 00:00:09]} 9. Bd3
{[%clk 01:26:31]} {[%emt 00:00:06]} Re8 {[%clk 01:30:41]} {[%emt 00:00:11]} 10.
O-O {[%clk 01:26:38]} {[%emt 00:00:24]} Nf8 {[%clk 01:31:06]} {[%emt 00:00:06]}
11. h3 {[%clk 01:19:53]} {[%emt 00:07:15]} Ng6 {[%clk 01:28:21]} {[%emt
00:03:14]} 12. Ne5 {[%clk 01:14:44]} {[%emt 00:05:40]} Bd6 {[%clk 01:23:49]}
{[%emt 00:05:01]} 13. Nxg6 {[%clk 01:12:31]} {[%emt 00:02:43]} hxg6 {[%clk
01:24:13]} {[%emt 00:00:06]} 14. Bg5 {[%clk 01:10:14]} {[%emt 00:02:47]} Be7
{[%clk 01:14:25]} {[%emt 00:10:18]} 15. Bxf6 {[%clk 01:05:34]} {[%emt
00:05:10]} Bxf6 {[%clk 01:14:26]} {[%emt 00:00:29]} 16. b4 {[%clk 01:05:56]}
{[%emt 00:00:08]} a6 {[%clk 01:13:33]} {[%emt 00:01:22]} 17. Na4 {[%clk
01:05:10]} {[%emt 00:01:17]} Qd6 {[%clk 01:12:43]} {[%emt 00:01:19]} 18. Rab1
{[%clk 01:05:18]} {[%emt 00:00:22]} Bd8 {[%clk 01:10:55]} {[%emt 00:02:18]} 19.
Qc5 {[%clk 00:58:58]} {[%emt 00:06:50]} Bc7 {[%clk 01:05:47]} {[%emt 00:05:39]}
20. Qxd6 {[%clk 00:59:08]} {[%emt 00:00:21]} Bxd6 {[%clk 01:06:12]} {[%emt
00:00:04]} 21. Rfc1 {[%clk 00:52:47]} {[%emt 00:06:50]} Bf5 {[%clk 01:05:26]}
{[%emt 00:01:17]} 22. Bxf5 {[%clk 00:50:36]} {[%emt 00:02:41]} gxf5 {[%clk
01:05:51]} {[%emt 00:00:04]} 23. g3 {[%clk 00:51:01]} {[%emt 00:00:06]} Re7
{[%clk 01:00:03]} {[%emt 00:06:18]} 24. Nc5 {[%clk 00:50:20]} {[%emt 00:01:11]}
Kf8 {[%clk 00:48:26]} {[%emt 00:12:08]} 25. a4 {[%clk 00:47:00]} {[%emt
00:03:49]} Ke8 {[%clk 00:37:53]} {[%emt 00:11:03]} 26. Nd3 {[%clk 00:41:36]}
{[%emt 00:05:55]} Rc7 {[%clk 00:35:20]} {[%emt 00:03:02]} 27. Kg2 {[%clk
00:41:33]} {[%emt 00:00:33]} Kd7 {[%clk 00:34:35]} {[%emt 00:01:15]} 28. Kf3
{[%clk 00:40:01]} {[%emt 00:02:03]} b6 {[%clk 00:33:09]} {[%emt 00:01:56]} 29.
g4 {[%clk 00:35:17]} {[%emt 00:05:13]} fxg4+ {[%clk 00:32:35]} {[%emt
00:01:04]} 30. hxg4 {[%clk 00:35:43]} {[%emt 00:00:04]} Rh8 {[%clk 00:32:59]}
{[%emt 00:00:06]} 31. Rh1 {[%clk 00:35:40]} {[%emt 00:00:33]} Rcc8 {[%clk
00:33:22]} {[%emt 00:00:07]} 32. Ke2 {[%clk 00:31:04]} {[%emt 00:05:06]} Rce8
{[%clk 00:32:57]} {[%emt 00:00:55]} 33. f4 {[%clk 00:28:22]} {[%emt 00:03:11]}
g6 {[%clk 00:29:01]} {[%emt 00:04:27]} 34. g5 {[%clk 00:22:55]} {[%emt
00:05:58]} Ke6 {[%clk 00:27:05]} {[%emt 00:02:25]} 35. Rbc1 {[%clk 00:21:51]}
{[%emt 00:01:34]} Kd7 {[%clk 00:25:59]} {[%emt 00:01:36]} 36. Kf3 {[%clk
00:22:01]} {[%emt 00:00:19]} Rc8 {[%clk 00:23:42]} {[%emt 00:02:48]} 37. e4
{[%clk 00:16:38]} {[%emt 00:05:53]} dxe4+ {[%clk 00:19:29]} {[%emt 00:04:44]}
38. Kxe4 {[%clk 00:17:06]} {[%emt 00:00:02]} Rce8+ {[%clk 00:19:49]} {[%emt
00:00:09]} 39. Ne5+ {[%clk 00:17:03]} {[%emt 00:00:33]} Bxe5 {[%clk 00:19:56]}
{[%emt 00:00:24]} 40. fxe5 {[%clk 00:12:35]} {[%emt 00:04:57]} b5 {[%clk
00:16:13]} {[%emt 00:04:13]} 41. a5 {[%clk 00:10:45]} {[%emt 00:02:20]} Rc8
{[%clk 00:14:31]} {[%emt 00:02:12]} 42. Rcf1 {[%clk 00:10:16]} {[%emt
00:00:59]} Ke7 {[%clk 00:12:34]} {[%emt 00:02:28]} 43. Rh6 {[%clk 00:09:21]}
{[%emt 00:01:24]} Rxh6 {[%clk 00:06:25]} {[%emt 00:06:40]} 44. gxh6 {[%clk
00:09:46]} {[%emt 00:00:05]} Rh8 {[%clk 00:06:52]} {[%emt 00:00:02]} 45. Rf6
{[%clk 00:09:13]} {[%emt 00:01:03]} Rxh6 {[%clk 00:07:09]} {[%emt 00:00:13]} 46.
Rxc6 {[%clk 00:09:40]} {[%emt 00:00:03]} Rh1 {[%clk 00:07:06]} {[%emt
00:00:33]} 47. Rxa6 {[%clk 00:09:35]} {[%emt 00:00:34]} Rb1 {[%clk 00:07:29]}
{[%emt 00:00:08]} 48. Ra7+ {[%clk 00:07:01]} {[%emt 00:03:05]} Kf8 {[%clk
00:05:59]} {[%emt 00:01:59]} 49. a6 {[%clk 00:07:17]} {[%emt 00:00:13]} Rxb4
{[%clk 00:06:14]} {[%emt 00:00:16]} 50. Rb7 {[%clk 00:06:48]} {[%emt 00:00:59]}
Ra4 {[%clk 00:05:24]} {[%emt 00:01:20]} 51. a7 {[%clk 00:07:12]} {[%emt
00:00:06]} Kg7 {[%clk 00:05:52]} {[%emt 00:00:02]} 52. e6 {[%clk 00:07:34]}
{[%emt 00:00:08]} Kf6 {[%clk 00:06:17]} {[%emt 00:00:05]} 53. exf7 {[%clk
00:07:57]} {[%emt 00:00:07]} 1-0

[Event "TOP 12 FEMININ 2022 - Phase 1"]
[Site "MULHOUSE, France"]
[Date "2022.04.07"]
[Round "1.23"]
[White "SABIANI  CAN, Chjara"]
[Black "MAISURADZE  BIS, Nino"]
[Result "0-1"]
[TimeControl "90 min +30 secondes par coup"]
[WhiteElo "1793"]
[BlackElo "2202"]

1. d4 {[%clk 01:30:43]} {[%emt 00:00:15]} d5 {[%clk 01:30:57]} {[%emt
00:00:04]} 2. c4 {[%clk 01:30:25]} {[%emt 00:00:49]} e6 {[%clk 01:31:23]}
{[%emt 00:00:04]} 3. Nc3 {[%clk 01:29:42]} {[%emt 00:01:12]} Nf6 {[%clk
01:31:43]} {[%emt 00:00:10]} 4. cxd5 {[%clk 01:29:34]} {[%emt 00:00:38]} exd5
{[%clk 01:32:09]} {[%emt 00:00:04]} 5. Bg5 {[%clk 01:28:40]} {[%emt 00:01:24]}
c6 {[%clk 01:32:02]} {[%emt 00:00:38]} 6. Qc2 {[%clk 01:27:47]} {[%emt
00:01:22]} Be7 {[%clk 01:31:45]} {[%emt 00:00:48]} 7. e3 {[%clk 01:27:59]}
{[%emt 00:00:17]} O-O {[%clk 01:30:52]} {[%emt 00:01:24]} 8. Bd3 {[%clk
01:27:49]} {[%emt 00:00:39]} Nbd7 {[%clk 01:31:10]} {[%emt 00:00:13]} 9. Nf3
{[%clk 01:25:19]} {[%emt 00:03:00]} Re8 {[%clk 01:31:25]} {[%emt 00:00:15]} 10.
O-O {[%clk 01:22:02]} {[%emt 00:03:45]} Nf8 {[%clk 01:31:41]} {[%emt 00:00:15]}
11. Rab1 {[%clk 01:20:22]} {[%emt 00:02:10]} a5 {[%clk 01:31:36]} {[%emt
00:00:36]} 12. a3 {[%clk 01:18:22]} {[%emt 00:02:29]} Bd6 {[%clk 01:31:20]}
{[%emt 00:00:46]} 13. b4 {[%clk 01:11:06]} {[%emt 00:07:46]} Bg4 {[%clk
01:31:25]} {[%emt 00:00:25]} 14. Nd2 {[%clk 01:09:58]} {[%emt 00:01:38]} Bh5
{[%clk 01:31:27]} {[%emt 00:00:29]} 15. h3 {[%emt 00:09:59]} Bg6 {[%clk
01:27:39]} {[%emt 00:04:16]} 16. bxa5 {[%clk 00:56:17]} {[%emt 00:04:44]} Ra7
{[%clk 01:23:42]} {[%emt 00:04:27]} 17. a6 {[%clk 00:46:03]} {[%emt 00:10:44]}
Rxa6 {[%clk 01:11:36]} {[%emt 00:12:35]} 18. e4 {[%clk 00:38:35]} {[%emt
00:07:58]} dxe4 {[%clk 00:59:49]} {[%emt 00:12:18]} 19. Bxa6 {[%clk 00:38:33]}
{[%emt 00:00:32]} bxa6 {[%clk 00:57:30]} {[%emt 00:02:48]} 20. Be3 {[%clk
00:38:36]} {[%emt 00:00:25]} Nh5 {[%clk 00:46:19]} {[%emt 00:11:43]} 21. Nc4
{[%clk 00:21:56]} {[%emt 00:17:10]} Bc7 {[%clk 00:28:08]} {[%emt 00:18:42]} 22.
Qb3 {[%clk 00:18:29]} {[%emt 00:03:56]} Ne6 {[%clk 00:25:06]} {[%emt 00:03:33]}
23. Rfd1 {[%clk 00:16:36]} {[%emt 00:02:22]} Nef4 {[%clk 00:14:39]} {[%emt
00:10:57]} 24. Bxf4 {[%clk 00:11:11]} {[%emt 00:05:55]} Nxf4 {[%clk 00:14:47]}
{[%emt 00:00:22]} 25. Ne3 {[%clk 00:11:37]} {[%emt 00:00:04]} Qg5 {[%clk
00:14:43]} {[%emt 00:00:34]} 26. Kf1 {[%clk 00:10:22]} {[%emt 00:01:45]} Bh5
{[%clk 00:14:26]} {[%emt 00:00:47]} 27. Qb7 {[%clk 00:09:06]} {[%emt 00:01:47]}
Qd8 {[%clk 00:06:59]} {[%emt 00:07:56]} 28. Rd2 {[%clk 00:09:05]} {[%emt
00:00:32]} c5 {[%clk 00:03:39]} {[%emt 00:03:50]} 29. d5 {[%clk 00:08:36]}
{[%emt 00:00:58]} Be5 {[%clk 00:02:27]} {[%emt 00:01:42]} 30. Rc2 {[%clk
00:06:07]} {[%emt 00:03:00]} Bd4 {[%clk 00:02:02]} {[%emt 00:00:55]} 31. Qc6
{[%clk 00:04:38]} {[%emt 00:01:59]} Nd3 {[%clk 00:01:32]} {[%emt 00:00:59]} 32.
Ne2 {[%clk 00:04:37]} {[%emt 00:00:31]} Ne5 {[%clk 00:00:44]} {[%emt 00:01:18]}
33. Qb6 {[%clk 00:04:40]} {[%emt 00:00:27]} Qg5 {[%clk 00:00:45]} {[%emt
00:00:29]} 34. Nxd4 {[%clk 00:04:52]} {[%emt 00:00:18]} cxd4 {[%clk 00:01:02]}
{[%emt 00:00:13]} 35. Qxd4 {[%clk 00:05:15]} {[%emt 00:00:07]} f5 {[%clk
00:00:52]} {[%emt 00:00:40]} 36. Rc7 {[%clk 00:03:02]} {[%emt 00:02:44]} f4
{[%clk 00:01:11]} {[%emt 00:00:11]} 37. Ng4 {[%clk 00:03:02]} {[%emt 00:00:29]}
Bxg4 {[%clk 00:01:21]} {[%emt 00:00:21]} 38. hxg4 {[%clk 00:03:27]} {[%emt
00:00:04]} f3 {[%clk 00:00:43]} {[%emt 00:01:08]} 39. g3 {[%clk 00:02:18]}
{[%emt 00:01:39]} Qh6 {[%clk 00:00:45]} {[%emt 00:00:29]} 40. Ke1 {[%clk
00:01:38]} {[%emt 00:01:10]} e3 {[%clk 00:00:47]} {[%emt 00:00:28]} 41. Qxe3
{[%clk 00:00:41]} {[%emt 00:01:26]} Qh1+ {[%clk 00:01:06]} {[%emt 00:00:11]} 42.
Kd2 {[%clk 00:01:08]} {[%emt 00:00:03]} Qxb1 {[%clk 00:01:30]} {[%emt
00:00:06]} 43. Qg5 {[%clk 00:01:24]} {[%emt 00:00:14]} Qb2+ {[%clk 00:00:49]}
{[%emt 00:01:11]} 44. Rc2 {[%clk 00:01:14]} {[%emt 00:00:40]} Qd4+ {[%clk
00:01:03]} {[%emt 00:00:17]} 45. Kc1 {[%clk 00:01:37]} {[%emt 00:00:06]} Nd3+
{[%clk 00:01:18]} {[%emt 00:00:14]} 46. Kb1 {[%clk 00:01:59]} {[%emt 00:00:08]}
Rb8+ {[%clk 00:01:31]} {[%emt 00:00:19]} 47. Ka2 {[%clk 00:02:08]} {[%emt
00:00:21]} Rb2+ {[%clk 00:01:49]} {[%emt 00:00:11]} 0-1